{"text_format":"1","workbook":"xlsx","n_sheets":5,"sheets":["Hjulet","Inputmaske budget","Inputmaske opfølgning","Inputmaske regnskab","R"],"not_rendered":{"charts":1,"images":0,"macros":1,"external_links":0,"defined_names":3,"comments":0,"pivot_tables":0},"unopened":[],"bounds":{"document_bytes":16777216,"sheet_cells":100000,"rows_first":2000,"rows_last":500,"rows_between":2000,"halvings":0,"cell_chars":16384,"cell_head_chars":4096},"cells_cut":0,"cells_raw":0,"read":"whole","date_system":"1900"}

{"sheet":"Hjulet","index":0,"n_rows":29,"n_cols":25,"rows_kept":29,"cut":false,"hidden":false,"merged":[[5,22,7,24],[26,22,28,24],[5,1,7,3],[26,1,28,3],[25,14,25,17],[18,21,21,21],[8,13,8,18],[18,4,21,4],[25,8,25,11],[12,21,15,21],[12,4,15,4],[25,4,25,6],[8,7,8,12]]}
[]
[]
[]
[]
[]
[null,null,null,null,{"$f":"IF('Inputmaske budget'!B69=0,\"\",'Inputmaske budget'!B69)","v":""},{"$f":"IF('Inputmaske budget'!B70=0,\"\",'Inputmaske budget'!B70)","v":""},{"$f":"IF('Inputmaske budget'!B71=0,\"\",'Inputmaske budget'!B71)","v":""},{"$f":"IF('Inputmaske budget'!B72=0,\"\",'Inputmaske budget'!B72)","v":"Budgetbøger uddeles på Byrådsmødet"},{"$f":"IF('Inputmaske budget'!B73=0,\"\",'Inputmaske budget'!B73)","v":""},{"$f":"IF('Inputmaske budget'!B74=0,\"\",'Inputmaske budget'!B74)","v":""},{"$f":"IF('Inputmaske budget'!B75=0,\"\",'Inputmaske budget'!B75)","v":""},{"$f":"IF('Inputmaske budget'!B76=0,\"\",'Inputmaske budget'!B76)","v":""},{"$f":"IF('Inputmaske budget'!B77=0,\"\",'Inputmaske budget'!B77)","v":""},{"$f":"IF('Inputmaske budget'!B6=0,\"\",'Inputmaske budget'!B6)","v":""},{"$f":"IF('Inputmaske budget'!B7=0,\"\",'Inputmaske budget'!B7)","v":""},{"$f":"IF('Inputmaske budget'!B8=0,\"\",'Inputmaske budget'!B8)","v":""},{"$f":"IF('Inputmaske budget'!B9=0,\"\",'Inputmaske budget'!B9)","v":""},{"$f":"IF('Inputmaske budget'!B10=0,\"\",'Inputmaske budget'!B10)","v":""},{"$f":"IF('Inputmaske budget'!B11=0,\"\",'Inputmaske budget'!B11)","v":""},{"$f":"IF('Inputmaske budget'!B12=0,\"\",'Inputmaske budget'!B12)","v":"Dannelse af budgetgrundlag (ADM)"},{"$f":"IF('Inputmaske budget'!B13=0,\"\",'Inputmaske budget'!B13)","v":""},{"$f":"IF('Inputmaske budget'!B14=0,\"\",'Inputmaske budget'!B14)","v":""}]
[null,null,null,null,{"$f":"IF('Inputmaske opfølgning'!B69=0,\"\",'Inputmaske opfølgning'!B69)","v":"Fagudvalg - politiske behandling af budgetopfølgningssagen"},{"$f":"IF('Inputmaske opfølgning'!B70=0,\"\",'Inputmaske opfølgning'!B70)","v":"CBØI udarbejder dagsordenpkt. til ØPU "},{"$f":"IF('Inputmaske opfølgning'!B71=0,\"\",'Inputmaske opfølgning'!B71)","v":"ØPU - Politisk behandling af budgetopfølgningssagen"},{"$f":"IF('Inputmaske opfølgning'!B72=0,\"\",'Inputmaske opfølgning'!B72)","v":"CBØI udarbejder indberetningsskemaer"},{"$f":"IF('Inputmaske opfølgning'!B73=0,\"\",'Inputmaske opfølgning'!B73)","v":"BR - Politisk behandling af budgetopfølgningssagen"},{"$f":"IF('Inputmaske opfølgning'!B74=0,\"\",'Inputmaske opfølgning'!B74)","v":"CBØI - Indlæsning af indberetningsskemaer"},{"$f":"IF('Inputmaske opfølgning'!B75=0,\"\",'Inputmaske opfølgning'!B75)","v":""},{"$f":"IF('Inputmaske opfølgning'!B76=0,\"\",'Inputmaske opfølgning'!B76)","v":""},{"$f":"IF('Inputmaske opfølgning'!B77=0,\"\",'Inputmaske opfølgning'!B77)","v":""},{"$f":"IF('Inputmaske opfølgning'!B6=0,\"\",'Inputmaske opfølgning'!B6)","v":""},{"$f":"IF('Inputmaske opfølgning'!B7=0,\"\",'Inputmaske opfølgning'!B7)","v":""},{"$f":"IF('Inputmaske opfølgning'!B8=0,\"\",'Inputmaske opfølgning'!B8)","v":""},{"$f":"IF('Inputmaske opfølgning'!B9=0,\"\",'Inputmaske opfølgning'!B9)","v":""},{"$f":"IF('Inputmaske opfølgning'!B10=0,\"\",'Inputmaske opfølgning'!B10)","v":""},{"$f":"IF('Inputmaske opfølgning'!B11=0,\"\",'Inputmaske opfølgning'!B11)","v":""},{"$f":"IF('Inputmaske opfølgning'!B12=0,\"\",'Inputmaske opfølgning'!B12)","v":""},{"$f":"IF('Inputmaske opfølgning'!B13=0,\"\",'Inputmaske opfølgning'!B13)","v":""},{"$f":"IF('Inputmaske opfølgning'!B14=0,\"\",'Inputmaske opfølgning'!B14)","v":""}]
[null,null,null,null,{"$f":"IF('Inputmaske regnskab'!B69=0,\"\",'Inputmaske regnskab'!B69)","v":"Udsendelse af tidsplan for regnskabsaflæggelse"},{"$f":"IF('Inputmaske regnskab'!B70=0,\"\",'Inputmaske regnskab'!B70)","v":""},{"$f":"IF('Inputmaske regnskab'!B71=0,\"\",'Inputmaske regnskab'!B71)","v":""},{"$f":"IF('Inputmaske regnskab'!B72=0,\"\",'Inputmaske regnskab'!B72)","v":"Anmod revisionen om regninger for årsregnskab og øvrige opgaver"},{"$f":"IF('Inputmaske regnskab'!B73=0,\"\",'Inputmaske regnskab'!B73)","v":""},{"$f":"IF('Inputmaske regnskab'!B74=0,\"\",'Inputmaske regnskab'!B74)","v":""},{"$f":"IF('Inputmaske regnskab'!B75=0,\"\",'Inputmaske regnskab'!B75)","v":""},{"$f":"IF('Inputmaske regnskab'!B76=0,\"\",'Inputmaske regnskab'!B76)","v":""},{"$f":"IF('Inputmaske regnskab'!B77=0,\"\",'Inputmaske regnskab'!B77)","v":""},{"$f":"IF('Inputmaske regnskab'!B6=0,\"\",'Inputmaske regnskab'!B6)","v":"Orienteringsbreve udsendes (CBØI)"},{"$f":"IF('Inputmaske regnskab'!B7=0,\"\",'Inputmaske regnskab'!B7)","v":"Bogføring - faktura mv."},{"$f":"IF('Inputmaske regnskab'!B8=0,\"\",'Inputmaske regnskab'!B8)","v":""},{"$f":"IF('Inputmaske regnskab'!B9=0,\"\",'Inputmaske regnskab'!B9)","v":""},{"$f":"IF('Inputmaske regnskab'!B10=0,\"\",'Inputmaske regnskab'!B10)","v":""},{"$f":"IF('Inputmaske regnskab'!B11=0,\"\",'Inputmaske regnskab'!B11)","v":""},{"$f":"IF('Inputmaske regnskab'!B12=0,\"\",'Inputmaske regnskab'!B12)","v":"Bogføring - afslutningsposteringer"},{"$f":"IF('Inputmaske regnskab'!B13=0,\"\",'Inputmaske regnskab'!B13)","v":"Afstemning - statuskonti"},{"$f":"IF('Inputmaske regnskab'!B14=0,\"\",'Inputmaske regnskab'!B14)","v":"Regnskabs-bemærkninger"}]
[null,{"$f":"IF('Inputmaske budget'!B68=0,\"\",'Inputmaske budget'!B68)","v":""},{"$f":"IF('Inputmaske opfølgning'!B68=0,\"\",'Inputmaske opfølgning'!B68)","v":"Dagsordensforslag udarbejdes og sendes til fagudvalg"},{"$f":"IF('Inputmaske regnskab'!B68=0,\"\",'Inputmaske regnskab'!B68)","v":""},"november",null,null,"december",null,null,null,null,null,"januar",null,null,null,null,null,null,"februar",null,{"$f":"IF('Inputmaske regnskab'!B15=0,\"\",'Inputmaske regnskab'!B15)","v":"Anlægskartotek - opdatering"},{"$f":"IF('Inputmaske opfølgning'!B15=0,\"\",'Inputmaske opfølgning'!B15)","v":""},{"$f":"IF('Inputmaske budget'!B15=0,\"\",'Inputmaske budget'!B15)","v":""}]
[null,{"$f":"IF('Inputmaske budget'!B67=0,\"\",'Inputmaske budget'!B67)","v":""},{"$f":"IF('Inputmaske opfølgning'!B67=0,\"\",'Inputmaske opfølgning'!B67)","v":"Oversigtsskema fremlægges på koncernledelsesmøde"},{"$f":"IF('Inputmaske regnskab'!B67=0,\"\",'Inputmaske regnskab'!B67)","v":"Godkendt beretning sendes til tilsynsmyndigheder"},null,null,null,null,null,null,null,null,null,null,null,null,null,null,null,null,null,null,{"$f":"IF('Inputmaske regnskab'!B16=0,\"\",'Inputmaske regnskab'!B16)","v":"Refusioner (soc.) - foreløbig restafregning"},{"$f":"IF('Inputmaske opfølgning'!B16=0,\"\",'Inputmaske opfølgning'!B16)","v":""},{"$f":"IF('Inputmaske budget'!B16=0,\"\",'Inputmaske budget'!B16)","v":""}]
[null,{"$f":"IF('Inputmaske budget'!B66=0,\"\",'Inputmaske budget'!B66)","v":"Teknisk vedtagelse af budgettet i OPUS (ADM)"},{"$f":"IF('Inputmaske opfølgning'!B66=0,\"\",'Inputmaske opfølgning'!B66)","v":"Notat kvalitetssikres og færdigudarbejdes"},{"$f":"IF('Inputmaske regnskab'!B66=0,\"\",'Inputmaske regnskab'!B66)","v":"Revisonsberetning uanmeldt kasseftesyn  - pol.behandling (BR)"},null,null,null,null,null,null,null,null,null,null,null,null,null,null,null,null,null,null,{"$f":"IF('Inputmaske regnskab'!B17=0,\"\",'Inputmaske regnskab'!B17)","v":""},{"$f":"IF('Inputmaske opfølgning'!B17=0,\"\",'Inputmaske opfølgning'!B17)","v":""},{"$f":"IF('Inputmaske budget'!B17=0,\"\",'Inputmaske budget'!B17)","v":""}]
[null,{"$f":"IF('Inputmaske budget'!B65=0,\"\",'Inputmaske budget'!B65)","v":""},{"$f":"IF('Inputmaske opfølgning'!B65=0,\"\",'Inputmaske opfølgning'!B65)","v":"CBØI udarbejder budgetopfølgningsnotat"},{"$f":"IF('Inputmaske regnskab'!B65=0,\"\",'Inputmaske regnskab'!B65)","v":"Revisonsberetning uanmeldt kasseftesyn  - pol.behandling (ØPU)"},null,null,null,null,null,null,null,null,null,null,null,null,null,null,null,null,null,null,{"$f":"IF('Inputmaske regnskab'!B18=0,\"\",'Inputmaske regnskab'!B18)","v":"Bemærkninger - redigering og renskrivning"},{"$f":"IF('Inputmaske opfølgning'!B18=0,\"\",'Inputmaske opfølgning'!B18)","v":""},{"$f":"IF('Inputmaske budget'!B18=0,\"\",'Inputmaske budget'!B18)","v":"Møder med centre/stabe om budget 2018 (ADM)"}]
[null,{"$f":"IF('Inputmaske budget'!B64=0,\"\",'Inputmaske budget'!B64)","v":""},{"$f":"IF('Inputmaske opfølgning'!B64=0,\"\",'Inputmaske opfølgning'!B64)","v":"Godkendt oversigtsskema præsenteres for direktionen"},{"$f":"IF('Inputmaske regnskab'!B64=0,\"\",'Inputmaske regnskab'!B64)","v":""},"oktober",null,null,null,null,null,null,null,null,null,null,null,null,null,null,null,null,"marts",{"$f":"IF('Inputmaske regnskab'!B19=0,\"\",'Inputmaske regnskab'!B19)","v":"Refusioner (SDE) - foreløbig restafregning"},{"$f":"IF('Inputmaske opfølgning'!B19=0,\"\",'Inputmaske opfølgning'!B19)","v":""},{"$f":"IF('Inputmaske budget'!B19=0,\"\",'Inputmaske budget'!B19)","v":"Nye pris- og lønskøn modtages fra KL (ADM)"}]
[null,{"$f":"IF('Inputmaske budget'!B63=0,\"\",'Inputmaske budget'!B63)","v":""},{"$f":"IF('Inputmaske opfølgning'!B63=0,\"\",'Inputmaske opfølgning'!B63)","v":"Oversigtsskema sendes til godkendelse hos komm.dir."},{"$f":"IF('Inputmaske regnskab'!B63=0,\"\",'Inputmaske regnskab'!B63)","v":""},null,null,null,null,null,null,null,null,null,null,null,null,null,null,null,null,null,null,{"$f":"IF('Inputmaske regnskab'!B20=0,\"\",'Inputmaske regnskab'!B20)","v":"Regnskabsbem. - trykning og udsendelse"},{"$f":"IF('Inputmaske opfølgning'!B20=0,\"\",'Inputmaske opfølgning'!B20)","v":""},{"$f":"IF('Inputmaske budget'!B20=0,\"\",'Inputmaske budget'!B20)","v":"Dannelse af nyt budgetgrundlag (ADM)"}]
[null,{"$f":"IF('Inputmaske budget'!B62=0,\"\",'Inputmaske budget'!B62)","v":"Budgetforlig"},{"$f":"IF('Inputmaske opfølgning'!B62=0,\"\",'Inputmaske opfølgning'!B62)","v":"CBØI udarbejder samlet oversigtsskema"},{"$f":"IF('Inputmaske regnskab'!B62=0,\"\",'Inputmaske regnskab'!B62)","v":""},null,null,null,null,null,null,null,null,null,null,null,null,null,null,null,null,null,null,{"$f":"IF('Inputmaske regnskab'!B21=0,\"\",'Inputmaske regnskab'!B21)","v":"Borgmestertale"},{"$f":"IF('Inputmaske opfølgning'!B21=0,\"\",'Inputmaske opfølgning'!B21)","v":""},{"$f":"IF('Inputmaske budget'!B21=0,\"\",'Inputmaske budget'!B21)","v":"Dannelse af budgetrapporter; budgetgrundlag (ADM)"}]
[null,{"$f":"IF('Inputmaske budget'!B61=0,\"\",'Inputmaske budget'!B61)","v":"Budgetbøger mv. (ADM)"},{"$f":"IF('Inputmaske opfølgning'!B61=0,\"\",'Inputmaske opfølgning'!B61)","v":"CBØI kvalitetssikrer modt.bidrag i samarb. med centrene"},{"$f":"IF('Inputmaske regnskab'!B61=0,\"\",'Inputmaske regnskab'!B61)","v":""},null,null,null,null,null,null,null,null,null,null,null,null,null,null,null,null,null,null,{"$f":"IF('Inputmaske regnskab'!B22=0,\"\",'Inputmaske regnskab'!B22)","v":"Indsende regnskabsmat. til DK-stat og ØIM "},{"$f":"IF('Inputmaske opfølgning'!B22=0,\"\",'Inputmaske opfølgning'!B22)","v":""},{"$f":"IF('Inputmaske budget'!B22=0,\"\",'Inputmaske budget'!B22)","v":"Budgetproceduresag i Økonomi- og Planudvalget (POL)"}]
[null,{"$f":"IF('Inputmaske budget'!B60=0,\"\",'Inputmaske budget'!B60)","v":"2. behandling af budgetforslaget i Byrådet (POL)"},{"$f":"IF('Inputmaske opfølgning'!B60=0,\"\",'Inputmaske opfølgning'!B60)","v":"Centre afleverer bidrag"},{"$f":"IF('Inputmaske regnskab'!B60=0,\"\",'Inputmaske regnskab'!B60)","v":""},null,null,null,null,null,null,null,null,null,null,null,null,null,null,null,null,null,null,{"$f":"IF('Inputmaske regnskab'!B23=0,\"\",'Inputmaske regnskab'!B23)","v":"Regnskab 2017 - pol.behandling (ØPU)"},{"$f":"IF('Inputmaske opfølgning'!B23=0,\"\",'Inputmaske opfølgning'!B23)","v":""},{"$f":"IF('Inputmaske budget'!B23=0,\"\",'Inputmaske budget'!B23)","v":""}]
[null,{"$f":"IF('Inputmaske budget'!B59=0,\"\",'Inputmaske budget'!B59)","v":""},{"$f":"IF('Inputmaske opfølgning'!B59=0,\"\",'Inputmaske opfølgning'!B59)","v":""},{"$f":"IF('Inputmaske regnskab'!B59=0,\"\",'Inputmaske regnskab'!B59)","v":""},null,null,null,null,null,null,null,null,null,null,null,null,null,null,null,null,null,null,{"$f":"IF('Inputmaske regnskab'!B24=0,\"\",'Inputmaske regnskab'!B24)","v":"Regnskab 2017 - pol.behandling (BR)"},{"$f":"IF('Inputmaske opfølgning'!B24=0,\"\",'Inputmaske opfølgning'!B24)","v":"Indkaldelse af bidrag – inkl. revideret oversigtsskema "},{"$f":"IF('Inputmaske budget'!B24=0,\"\",'Inputmaske budget'!B24)","v":"Budgetproceduresag i Byrådet (POL)"}]
[null,{"$f":"IF('Inputmaske budget'!B58=0,\"\",'Inputmaske budget'!B58)","v":""},{"$f":"IF('Inputmaske opfølgning'!B58=0,\"\",'Inputmaske opfølgning'!B58)","v":""},{"$f":"IF('Inputmaske regnskab'!B58=0,\"\",'Inputmaske regnskab'!B58)","v":""},"september",null,null,null,null,null,null,null,null,null,null,null,null,null,null,null,null,"april",{"$f":"IF('Inputmaske regnskab'!B25=0,\"\",'Inputmaske regnskab'!B25)","v":"Regnskab 2017 - overgives revisionen"},{"$f":"IF('Inputmaske opfølgning'!B25=0,\"\",'Inputmaske opfølgning'!B25)","v":""},{"$f":"IF('Inputmaske budget'!B25=0,\"\",'Inputmaske budget'!B25)","v":"Administrativ budgetproces - tekniske ændringer (ADM)"}]
[null,{"$f":"IF('Inputmaske budget'!B57=0,\"\",'Inputmaske budget'!B57)","v":"2. behandling af budgetforslaget i Økonomi- og Planudvalget (POL)"},{"$f":"IF('Inputmaske opfølgning'!B57=0,\"\",'Inputmaske opfølgning'!B57)","v":""},{"$f":"IF('Inputmaske regnskab'!B57=0,\"\",'Inputmaske regnskab'!B57)","v":""},null,null,null,null,null,null,null,null,null,null,null,null,null,null,null,null,null,null,{"$f":"IF('Inputmaske regnskab'!B26=0,\"\",'Inputmaske regnskab'!B26)","v":"Refusioner (soc.) - endelig restafregning"},{"$f":"IF('Inputmaske opfølgning'!B26=0,\"\",'Inputmaske opfølgning'!B26)","v":""},{"$f":"IF('Inputmaske budget'!B26=0,\"\",'Inputmaske budget'!B26)","v":""}]
[null,{"$f":"IF('Inputmaske budget'!B56=0,\"\",'Inputmaske budget'!B56)","v":"Udvalgene behandler budgetforslaget (POL)"},{"$f":"IF('Inputmaske opfølgning'!B56=0,\"\",'Inputmaske opfølgning'!B56)","v":""},{"$f":"IF('Inputmaske regnskab'!B56=0,\"\",'Inputmaske regnskab'!B56)","v":""},null,null,null,null,null,null,null,null,null,null,null,null,null,null,null,null,null,null,{"$f":"IF('Inputmaske regnskab'!B27=0,\"\",'Inputmaske regnskab'!B27)","v":""},{"$f":"IF('Inputmaske opfølgning'!B27=0,\"\",'Inputmaske opfølgning'!B27)","v":""},{"$f":"IF('Inputmaske budget'!B27=0,\"\",'Inputmaske budget'!B27)","v":""}]
[null,{"$f":"IF('Inputmaske budget'!B55=0,\"\",'Inputmaske budget'!B55)","v":"Politiske forhandlinger (POL)"},{"$f":"IF('Inputmaske opfølgning'!B55=0,\"\",'Inputmaske opfølgning'!B55)","v":""},{"$f":"IF('Inputmaske regnskab'!B55=0,\"\",'Inputmaske regnskab'!B55)","v":""},null,null,null,null,null,null,null,null,null,null,null,null,null,null,null,null,null,null,{"$f":"IF('Inputmaske regnskab'!B28=0,\"\",'Inputmaske regnskab'!B28)","v":""},{"$f":"IF('Inputmaske opfølgning'!B28=0,\"\",'Inputmaske opfølgning'!B28)","v":""},{"$f":"IF('Inputmaske budget'!B28=0,\"\",'Inputmaske budget'!B28)","v":""}]
[null,{"$f":"IF('Inputmaske budget'!B54=0,\"\",'Inputmaske budget'!B54)","v":"Budgetorienteringsmøde for Byrådet (POL)"},{"$f":"IF('Inputmaske opfølgning'!B54=0,\"\",'Inputmaske opfølgning'!B54)","v":""},{"$f":"IF('Inputmaske regnskab'!B54=0,\"\",'Inputmaske regnskab'!B54)","v":""},null,null,null,null,null,null,null,null,null,null,null,null,null,null,null,null,null,null,{"$f":"IF('Inputmaske regnskab'!B29=0,\"\",'Inputmaske regnskab'!B29)","v":""},{"$f":"IF('Inputmaske opfølgning'!B29=0,\"\",'Inputmaske opfølgning'!B29)","v":""},{"$f":"IF('Inputmaske budget'!B29=0,\"\",'Inputmaske budget'!B29)","v":""}]
[null,{"$f":"IF('Inputmaske budget'!B53=0,\"\",'Inputmaske budget'!B53)","v":""},{"$f":"IF('Inputmaske opfølgning'!B53=0,\"\",'Inputmaske opfølgning'!B53)","v":""},{"$f":"IF('Inputmaske regnskab'!B53=0,\"\",'Inputmaske regnskab'!B53)","v":""},null,null,null,null,null,null,null,null,null,null,null,null,null,null,null,null,null,null,{"$f":"IF('Inputmaske regnskab'!B30=0,\"\",'Inputmaske regnskab'!B30)","v":"Regnskab 2017 - sende til ØIM"},{"$f":"IF('Inputmaske opfølgning'!B30=0,\"\",'Inputmaske opfølgning'!B30)","v":"Centre afleverer bidrag"},{"$f":"IF('Inputmaske budget'!B30=0,\"\",'Inputmaske budget'!B30)","v":"Udvalgsbehandling af budgetgrundlaget (POL)"}]
[null,{"$f":"IF('Inputmaske budget'!B52=0,\"\",'Inputmaske budget'!B52)","v":""},{"$f":"IF('Inputmaske opfølgning'!B52=0,\"\",'Inputmaske opfølgning'!B52)","v":"Indkaldelse af bidrag – inkl. revideret oversigtsskema "},{"$f":"IF('Inputmaske regnskab'!B52=0,\"\",'Inputmaske regnskab'!B52)","v":""},null,null,null,null,null,null,null,null,null,null,null,null,null,null,null,null,null,null,{"$f":"IF('Inputmaske regnskab'!B31=0,\"\",'Inputmaske regnskab'!B31)","v":"Refusioner - endelig restafregning sendes til STAR"},{"$f":"IF('Inputmaske opfølgning'!B31=0,\"\",'Inputmaske opfølgning'!B31)","v":"CBØI kvalitetssikrer modt.bidrag i samarb. med centrene"},{"$f":"IF('Inputmaske budget'!B31=0,\"\",'Inputmaske budget'!B31)","v":"Byrådsseminar (POL)"}]
[null,{"$f":"IF('Inputmaske budget'!B51=0,\"\",'Inputmaske budget'!B51)","v":""},{"$f":"IF('Inputmaske opfølgning'!B51=0,\"\",'Inputmaske opfølgning'!B51)","v":""},{"$f":"IF('Inputmaske regnskab'!B51=0,\"\",'Inputmaske regnskab'!B51)","v":""},"august",null,null,null,"juli",null,null,null,null,null,"juni",null,null,null,null,null,"maj",null,{"$f":"IF('Inputmaske regnskab'!B32=0,\"\",'Inputmaske regnskab'!B32)","v":"Revisionsberetning - endelig"},{"$f":"IF('Inputmaske opfølgning'!B32=0,\"\",'Inputmaske opfølgning'!B32)","v":"CBØI udarbejder samlet oversigtsskema"},{"$f":"IF('Inputmaske budget'!B32=0,\"\",'Inputmaske budget'!B32)","v":"Administrativt budgetoplæg (ADM)"}]
[null,null,null,null,{"$f":"IF('Inputmaske regnskab'!B50=0,\"\",'Inputmaske regnskab'!B50)","v":""},{"$f":"IF('Inputmaske regnskab'!B49=0,\"\",'Inputmaske regnskab'!B49)","v":""},{"$f":"IF('Inputmaske regnskab'!B48=0,\"\",'Inputmaske regnskab'!B48)","v":""},{"$f":"IF('Inputmaske regnskab'!B47=0,\"\",'Inputmaske regnskab'!B47)","v":""},{"$f":"IF('Inputmaske regnskab'!B46=0,\"\",'Inputmaske regnskab'!B46)","v":""},{"$f":"IF('Inputmaske regnskab'!B45=0,\"\",'Inputmaske regnskab'!B45)","v":""},{"$f":"IF('Inputmaske regnskab'!B44=0,\"\",'Inputmaske regnskab'!B44)","v":""},{"$f":"IF('Inputmaske regnskab'!B43=0,\"\",'Inputmaske regnskab'!B43)","v":""},{"$f":"IF('Inputmaske regnskab'!B42=0,\"\",'Inputmaske regnskab'!B42)","v":""},{"$f":"IF('Inputmaske regnskab'!B41=0,\"\",'Inputmaske regnskab'!B41)","v":""},{"$f":"IF('Inputmaske regnskab'!B40=0,\"\",'Inputmaske regnskab'!B40)","v":""},{"$f":"IF('Inputmaske regnskab'!B39=0,\"\",'Inputmaske regnskab'!B39)","v":""},{"$f":"IF('Inputmaske regnskab'!B38=0,\"\",'Inputmaske regnskab'!B38)","v":"Decisionsskrivelser vedr. Regnskab 2016 - Økonomi- og Planudvalgets behandling"},{"$f":"IF('Inputmaske regnskab'!B37=0,\"\",'Inputmaske regnskab'!B37)","v":"Godkendt Regnskab 2017 udsendes + sendes til tilsynsmyndigheder"},{"$f":"IF('Inputmaske regnskab'!B36=0,\"\",'Inputmaske regnskab'!B36)","v":"Regnskab 2016 + rev.beretning - pol.behandling (ØPU+BR)"},{"$f":"IF('Inputmaske regnskab'!B35=0,\"\",'Inputmaske regnskab'!B35)","v":""},{"$f":"IF('Inputmaske regnskab'!B34=0,\"\",'Inputmaske regnskab'!B34)","v":""},{"$f":"IF('Inputmaske regnskab'!B33=0,\"\",'Inputmaske regnskab'!B33)","v":""}]
[null,null,null,null,{"$f":"IF('Inputmaske opfølgning'!B50=0,\"\",'Inputmaske opfølgning'!B50)","v":""},{"$f":"IF('Inputmaske opfølgning'!B49=0,\"\",'Inputmaske opfølgning'!B49)","v":""},{"$f":"IF('Inputmaske opfølgning'!B48=0,\"\",'Inputmaske opfølgning'!B48)","v":""},{"$f":"IF('Inputmaske opfølgning'!B47=0,\"\",'Inputmaske opfølgning'!B47)","v":""},{"$f":"IF('Inputmaske opfølgning'!B46=0,\"\",'Inputmaske opfølgning'!B46)","v":""},{"$f":"IF('Inputmaske opfølgning'!B45=0,\"\",'Inputmaske opfølgning'!B45)","v":""},{"$f":"IF('Inputmaske opfølgning'!B44=0,\"\",'Inputmaske opfølgning'!B44)","v":""},{"$f":"IF('Inputmaske opfølgning'!B43=0,\"\",'Inputmaske opfølgning'!B43)","v":""},{"$f":"IF('Inputmaske opfølgning'!B42=0,\"\",'Inputmaske opfølgning'!B42)","v":""},{"$f":"IF('Inputmaske opfølgning'!B41=0,\"\",'Inputmaske opfølgning'!B41)","v":"CBØI - Indlæsning af indberetningsskemaer"},{"$f":"IF('Inputmaske opfølgning'!B40=0,\"\",'Inputmaske opfølgning'!B40)","v":"BR - Politisk behandling af budgetopfølgningssagen"},{"$f":"IF('Inputmaske opfølgning'!B39=0,\"\",'Inputmaske opfølgning'!B39)","v":"CBØI udarbejder indberetningsskemaer"},{"$f":"IF('Inputmaske opfølgning'!B38=0,\"\",'Inputmaske opfølgning'!B38)","v":""},{"$f":"IF('Inputmaske opfølgning'!B37=0,\"\",'Inputmaske opfølgning'!B37)","v":""},{"$f":"IF('Inputmaske opfølgning'!B36=0,\"\",'Inputmaske opfølgning'!B36)","v":""},{"$f":"IF('Inputmaske opfølgning'!B35=0,\"\",'Inputmaske opfølgning'!B35)","v":"CBØI udarbejder budgetopfølgningsnotat"},{"$f":"IF('Inputmaske opfølgning'!B34=0,\"\",'Inputmaske opfølgning'!B34)","v":"Godkendt oversigtsskema præsenteres for direktionen"},{"$f":"IF('Inputmaske opfølgning'!B33=0,\"\",'Inputmaske opfølgning'!B33)","v":"Oversigtsskema sendes til godkendelse hos komm.dir."}]
[null,null,null,null,{"$f":"IF('Inputmaske budget'!B50=0,\"\",'Inputmaske budget'!B50)","v":"Høringsproces (POL)"},{"$f":"IF('Inputmaske budget'!B49=0,\"\",'Inputmaske budget'!B49)","v":"1. behandling af budgetforslaget i Økonomi- og Planudvalget og Byrådet (POL)"},{"$f":"IF('Inputmaske budget'!B48=0,\"\",'Inputmaske budget'!B48)","v":"Budgetbøger mv. - trykning mv. (ADM)"},{"$f":"IF('Inputmaske budget'!B47=0,\"\",'Inputmaske budget'!B47)","v":""},{"$f":"IF('Inputmaske budget'!B46=0,\"\",'Inputmaske budget'!B46)","v":""},{"$f":"IF('Inputmaske budget'!B45=0,\"\",'Inputmaske budget'!B45)","v":""},{"$f":"IF('Inputmaske budget'!B44=0,\"\",'Inputmaske budget'!B44)","v":"Budgetbøger mv. (ADM)"},{"$f":"IF('Inputmaske budget'!B43=0,\"\",'Inputmaske budget'!B43)","v":"Dannelse af budgetrapporter; budgetforslag (ADM)"},{"$f":"IF('Inputmaske budget'!B42=0,\"\",'Inputmaske budget'!B42)","v":"Tilskud, udligning og skatter (ADM)"},{"$f":"IF('Inputmaske budget'!B41=0,\"\",'Inputmaske budget'!B41)","v":""},{"$f":"IF('Inputmaske budget'!B40=0,\"\",'Inputmaske budget'!B40)","v":""},{"$f":"IF('Inputmaske budget'!B39=0,\"\",'Inputmaske budget'!B39)","v":""},{"$f":"IF('Inputmaske budget'!B38=0,\"\",'Inputmaske budget'!B38)","v":"Økonomiaftale mellem Regeringen og KL"},{"$f":"IF('Inputmaske budget'!B37=0,\"\",'Inputmaske budget'!B37)","v":"Udvalgsbehandling af budgetoplægget (POL)"},{"$f":"IF('Inputmaske budget'!B36=0,\"\",'Inputmaske budget'!B36)","v":"Dannelse af budgetrapporter; budgetoplæg (ADM)"},{"$f":"IF('Inputmaske budget'!B35=0,\"\",'Inputmaske budget'!B35)","v":""},{"$f":"IF('Inputmaske budget'!B34=0,\"\",'Inputmaske budget'!B34)","v":""},{"$f":"IF('Inputmaske budget'!B33=0,\"\",'Inputmaske budget'!B33)","v":""}]

{"sheet":"Inputmaske budget","index":1,"n_rows":77,"n_cols":2,"rows_kept":77,"cut":false,"hidden":false,"merged":[]}
[]
[]
[]
["BUDGET"]
["Måned","Emne"]
["JAN"]
["JAN"]
["JAN"]
["JAN"]
["JAN"]
["JAN"]
["FEB","Dannelse af budgetgrundlag (ADM)"]
["FEB"]
["FEB"]
["FEB"]
["FEB"]
["FEB"]
["MAR","Møder med centre/stabe om budget 2018 (ADM)"]
["MAR","Nye pris- og lønskøn modtages fra KL (ADM)"]
["MAR","Dannelse af nyt budgetgrundlag (ADM)"]
["MAR","Dannelse af budgetrapporter; budgetgrundlag (ADM)"]
["MAR","Budgetproceduresag i Økonomi- og Planudvalget (POL)"]
["MAR"]
["APR","Budgetproceduresag i Byrådet (POL)"]
["APR","Administrativ budgetproces - tekniske ændringer (ADM)"]
["APR"]
["APR"]
["APR"]
["APR"]
["MAJ","Udvalgsbehandling af budgetgrundlaget (POL)"]
["MAJ","Byrådsseminar (POL)"]
["MAJ","Administrativt budgetoplæg (ADM)"]
["MAJ"]
["MAJ"]
["MAJ"]
["JUN","Dannelse af budgetrapporter; budgetoplæg (ADM)"]
["JUN","Udvalgsbehandling af budgetoplægget (POL)"]
["JUN","Økonomiaftale mellem Regeringen og KL"]
["JUN"]
["JUN"]
["JUN"]
["JUL","Tilskud, udligning og skatter (ADM)"]
["JUL","Dannelse af budgetrapporter; budgetforslag (ADM)"]
["JUL","Budgetbøger mv. (ADM)"]
["JUL"]
["JUL"]
["JUL"]
["AUG","Budgetbøger mv. - trykning mv. (ADM)"]
["AUG","1. behandling af budgetforslaget i Økonomi- og Planudvalget og Byrådet (POL)"]
["AUG","Høringsproces (POL)"]
["AUG"]
["AUG"]
["AUG"]
["SEP","Budgetorienteringsmøde for Byrådet (POL)"]
["SEP","Politiske forhandlinger (POL)"]
["SEP","Udvalgene behandler budgetforslaget (POL)"]
["SEP","2. behandling af budgetforslaget i Økonomi- og Planudvalget (POL)"]
["SEP"]
["SEP"]
["OKT","2. behandling af budgetforslaget i Byrådet (POL)"]
["OKT","Budgetbøger mv. (ADM)"]
["OKT","Budgetforlig"]
["OKT"]
["OKT"]
["OKT"]
["NOV","Teknisk vedtagelse af budgettet i OPUS (ADM)"]
["NOV"]
["NOV"]
["NOV"]
["NOV"]
["NOV"]
["DEC","Budgetbøger uddeles på Byrådsmødet"]
["DEC"]
["DEC"]
["DEC"]
["DEC"]
["DEC"]

{"sheet":"Inputmaske opfølgning","index":2,"n_rows":77,"n_cols":2,"rows_kept":77,"cut":false,"hidden":false,"merged":[]}
[]
[]
[]
["BUDGETOPFØLGNING"]
["Måned","Emne"]
["JAN"]
["JAN"]
["JAN"]
["JAN"]
["JAN"]
["JAN"]
["FEB"]
["FEB"]
["FEB"]
["FEB"]
["FEB"]
["FEB"]
["MAR"]
["MAR"]
["MAR"]
["MAR"]
["MAR"]
["MAR"]
["APR","Indkaldelse af bidrag – inkl. revideret oversigtsskema "]
["APR"]
["APR"]
["APR"]
["APR"]
["APR"]
["MAJ","Centre afleverer bidrag"]
["MAJ","CBØI kvalitetssikrer modt.bidrag i samarb. med centrene"]
["MAJ","CBØI udarbejder samlet oversigtsskema"]
["MAJ","Oversigtsskema sendes til godkendelse hos komm.dir."]
["MAJ","Godkendt oversigtsskema præsenteres for direktionen"]
["MAJ","CBØI udarbejder budgetopfølgningsnotat"]
["JUN"]
["JUN"]
["JUN"]
["JUN","CBØI udarbejder indberetningsskemaer"]
["JUN","BR - Politisk behandling af budgetopfølgningssagen"]
["JUN","CBØI - Indlæsning af indberetningsskemaer"]
["JUL"]
["JUL"]
["JUL"]
["JUL"]
["JUL"]
["JUL"]
["AUG"]
["AUG"]
["AUG"]
["AUG"]
["AUG","Indkaldelse af bidrag – inkl. revideret oversigtsskema "]
["AUG"]
["SEP"]
["SEP"]
["SEP"]
["SEP"]
["SEP"]
["SEP"]
["OKT","Centre afleverer bidrag"]
["OKT","CBØI kvalitetssikrer modt.bidrag i samarb. med centrene"]
["OKT","CBØI udarbejder samlet oversigtsskema"]
["OKT","Oversigtsskema sendes til godkendelse hos komm.dir."]
["OKT","Godkendt oversigtsskema præsenteres for direktionen"]
["OKT","CBØI udarbejder budgetopfølgningsnotat"]
["NOV","Notat kvalitetssikres og færdigudarbejdes"]
["NOV","Oversigtsskema fremlægges på koncernledelsesmøde"]
["NOV","Dagsordensforslag udarbejdes og sendes til fagudvalg"]
["NOV","Fagudvalg - politiske behandling af budgetopfølgningssagen"]
["NOV","CBØI udarbejder dagsordenpkt. til ØPU "]
["NOV","ØPU - Politisk behandling af budgetopfølgningssagen"]
["DEC","CBØI udarbejder indberetningsskemaer"]
["DEC","BR - Politisk behandling af budgetopfølgningssagen"]
["DEC","CBØI - Indlæsning af indberetningsskemaer"]
["DEC"]
["DEC"]
["DEC"]

{"sheet":"Inputmaske regnskab","index":3,"n_rows":77,"n_cols":2,"rows_kept":77,"cut":false,"hidden":false,"merged":[]}
[]
[]
[]
["REGNSKAB"]
["Måned","Emne"]
["JAN","Orienteringsbreve udsendes (CBØI)"]
["JAN","Bogføring - faktura mv."]
["JAN"]
["JAN"]
["JAN"]
["JAN"]
["FEB","Bogføring - afslutningsposteringer"]
["FEB","Afstemning - statuskonti"]
["FEB","Regnskabs-bemærkninger"]
["FEB","Anlægskartotek - opdatering"]
["FEB","Refusioner (soc.) - foreløbig restafregning"]
["FEB"]
["MAR","Bemærkninger - redigering og renskrivning"]
["MAR","Refusioner (SDE) - foreløbig restafregning"]
["MAR","Regnskabsbem. - trykning og udsendelse"]
["MAR","Borgmestertale"]
["MAR","Indsende regnskabsmat. til DK-stat og ØIM "]
["MAR","Regnskab 2017 - pol.behandling (ØPU)"]
["APR","Regnskab 2017 - pol.behandling (BR)"]
["APR","Regnskab 2017 - overgives revisionen"]
["APR","Refusioner (soc.) - endelig restafregning"]
["APR"]
["APR"]
["APR"]
["MAJ","Regnskab 2017 - sende til ØIM"]
["MAJ","Refusioner - endelig restafregning sendes til STAR"]
["MAJ","Revisionsberetning - endelig"]
["MAJ"]
["MAJ"]
["MAJ"]
["JUN","Regnskab 2016 + rev.beretning - pol.behandling (ØPU+BR)"]
["JUN","Godkendt Regnskab 2017 udsendes + sendes til tilsynsmyndigheder"]
["JUN","Decisionsskrivelser vedr. Regnskab 2016 - Økonomi- og Planudvalgets behandling"]
["JUN"]
["JUN"]
["JUN"]
["JUL"]
["JUL"]
["JUL"]
["JUL"]
["JUL"]
["JUL"]
["AUG"]
["AUG"]
["AUG"]
["AUG"]
["AUG"]
["AUG"]
["SEP"]
["SEP"]
["SEP"]
["SEP"]
["SEP"]
["SEP"]
["OKT"]
["OKT"]
["OKT"]
["OKT"]
["OKT"]
["OKT","Revisonsberetning uanmeldt kasseftesyn  - pol.behandling (ØPU)"]
["NOV","Revisonsberetning uanmeldt kasseftesyn  - pol.behandling (BR)"]
["NOV","Godkendt beretning sendes til tilsynsmyndigheder"]
["NOV"]
["NOV","Udsendelse af tidsplan for regnskabsaflæggelse"]
["NOV"]
["NOV"]
["DEC","Anmod revisionen om regninger for årsregnskab og øvrige opgaver"]
["DEC"]
["DEC"]
["DEC"]
["DEC"]
["DEC"]

{"sheet":"R","index":4,"n_rows":6,"n_cols":14,"rows_kept":6,"cut":false,"hidden":false,"merged":[]}
[]
[]
[]
["Center for","JAN","FEB","MAR","APR","MAJ","JUN","JUL","AUG","SEP","OKT","NOV","DEC","I alt"]
["Ressourceforbrug",{"$f":"SUM('Inputmaske regnskab'!C6:C11)","v":0},{"$f":"SUM('Inputmaske regnskab'!C12:C17)","v":0},0,0,0,0,0,0,0,0,0,0,{"$f":"SUM(B5:M5)","v":0}]
["Tilrådehavende ressource",1,1,1,1,1,1,1,1,1,1,1,1,{"$f":"SUM(B6:M6)","v":12}]